Cogmind - Beta 10.1 @@@ ROGUE MODE // 2020.10.06 @ 15:56:04 Player: BOTHUNTER Result: Destroyed by S-10 Pest with Light Assault Rifle Performance ------------- Evolutions (0) 0 Regions Visited (2) 400 Robots Destroyed (27) 135 Value Destroyed (598) 598 Prototype IDs (0) 0 Alien Tech Used (0) 0 Bonus (36) 36 TOTAL SCORE: 1169 Bonus ------- High Alert Combat Kills 36 Cogmind --------- Core Integrity 0/250 Matter 249/300 Energy 100/100 System Corruption 0% Temperature Cool (0) Movement Core (50) Location -10/Mines Parts ------- > --- POWER (1) -------- (None) > --- PROPULSION (2) --- (None) > --- UTILITY (2) ------ Signal Interpreter Propulsion Shielding > --- WEAPON (2) ------- (None) > --- INVENTORY (4) ---- Flight Unit Small Storage Unit Structural Scanner Targeting Computer Peak State ------------ > --- POWER ------------ Light Ion Engine > --- PROPULSION ------- Flight Unit Flight Unit > --- UTILITY ---------- Signal Interpreter Propulsion Shielding > --- WEAPON ----------- Light Assault Rifle Light Cannon > --- INVENTORY -------- Flight Unit Small Storage Unit Structural Scanner Targeting Computer [Rating: 7] Favorites ----------- Power Light Ion Engine Engine Light Ion Engine Propulsion Flight Unit Flight Unit Flight Unit Utility Signal Interpreter Processor Signal Interpreter Protection Propulsion Shielding Weapon Light Assault Rifle Energy Gun Medium Laser Ballistic Gun Light Assault Rifle Ballistic Cannon Light Cannon Launcher Grenade Launcher Special Weapon Mining Laser Build | -11 -10 -10 ------- Run | Scr Mat Min Slots Evolved . | . . . Power . | . . . Propulsion . | . . . Utility . | . . . Weapon . | . . . Parts Attached 13 | 1 12 . Power 2 | . 2 . Engine 2 | . 2 . Core . | . . . Reactor . | . . . Propulsion 3 | . 3 . Treads . | . . . Leg . | . . . Wheel . | . . . Hover . | . . . Flight 3 | . 3 . Utility 3 | . 3 . Device . | . . . Storage . | . . . Processor 2 | . 2 . Hackware . | . . . Protection 1 | . 1 . Artifact . | . . . Weapon 5 | 1 4 . Energy Gun 1 | 1 . . Energy Cannon . | . . . Ballistic Gun 1 | . 1 . Ballistic Cannon 1 | . 1 . Launcher 1 | . 1 . Special Weapon 1 | . 1 . Impact Weapon . | . . . Slashing Weapon . | . . . Piercing Weapon . | . . . Special Melee Weapon . | . . . Unidentified Prototypes . | . . . Parts Lost 7 | . 5 2 Power 1 | . 1 . Propulsion 2 | . 1 1 Utility . | . . . Weapon 4 | . 3 1 Highest Loss Streak 4 | . 2 4 Average Slot Usage (%) 65 | . 65 42 Engine 6 | . 6 . Flight 12 | . 12 14 Processor 13 | . 13 14 Protection 9 | . 9 14 Energy Gun 4 | . 4 . Ballistic Gun 7 | . 8 . Ballistic Cannon 5 | . 5 . Launcher 3 | . 3 . Special Weapon 1 | . 1 . Naked Turns . | . . . Heaviest Build 8 | 2 8 4 Greatest Support 8 | 3 8 4 Greatest Overweight (x) 1 | . 1 . Average Overweight (x) . | . . . Largest Inventory Capacity 4 | 4 4 4 Average Capacity 4 | 4 4 4 Most Carried 4 | 2 4 4 Average Carried 3 | . 3 4 Final Capacity 4 | 4 4 4 Final Carried 4 | 2 4 4 Class Distribution -------------------- 100% | Mutant Dominant Class ---------------- Mutant | -10/Materials Mutant | -10/Mines Resources | -11 -10 -10 ----------- Run | Scr Mat Min Matter Collected 572 | 137 435 . Remotely . | . . . Salvage Created 604 | 70 534 . Parts 44 | 1 43 . Haulers Intercepted 2 | . 2 . Recyclers Shooed . | . . . Parts Field Recycled . | . . . Retrieved Matter . | . . . Parts Self-Destructed . | . . . Prevented . | . . . Kills | -11 -10 -10 ------- Run | Scr Mat Min Combat Hostiles Destroyed 17 | . 17 . Guns 6 | . 6 . Cannons 5 | . 5 . AOE 6 | . 6 . Classes Destroyed 7 | 1 6 . Worker 2 | . 2 . Builder 2 | . 2 . Hauler 2 | . 2 . Recycler 1 | 1 . . Watcher 3 | . 3 . Swarmer 5 | . 5 . Grunt 12 | . 12 . Best Kill Streak 7 | 1 7 . Combat Bots Only 4 | . 4 . Max Kills in Single Turn 3 | 1 3 . Gunslinging . | . . . Exploded 2 | . 2 . Melee . | . . . Uniques/NPCs Destroyed . | . . . Combat | -11 -10 -10 -------- Run | Scr Mat Min Damage Taken 721 | . 675 46 Core 256 | . 248 8 Absorbed by Shields . | . . . Core Remaining (%) 100 | 100 . . Volleys Fired 86 | 3 83 . Largest 2 | 1 2 . Hottest 100 | 50 100 . Shots Fired 125 | 3 122 . Gun 68 | 3 65 . Cannon 41 | . 41 . Launcher 12 | . 12 . Special 4 | . 4 . Kinetic 85 | . 85 . Thermal 28 | 3 25 . Explosive 12 | . 12 . Electromagnetic . | . . . Robot Hit Streak 16 | 2 16 . Robot Miss Streak 4 | 1 4 . Penetration Max . | . . . Secondary Targets . | . . . Shots Hit Robots 51 | 2 49 . Core Hits 43 | 2 41 . Critical Hits 1 | . 1 . Critical Kills . | . . . Critical Parts Destroyed 1 | . 1 . Melee Attacks . | . . . Impact . | . . . Slashing . | . . . Piercing . | . . . Sneak Attacks . | . . . Combat Hostiles . | . . . Follow-up Attacks . | . . . Damage Inflicted 1418 | 25 1393 . Guns 317 | 25 292 . Cannons 381 | . 381 . Explosions 720 | . 720 . Melee . | . . . Ramming . | . . . Kinetic 539 | . 539 . Thermal 201 | 25 176 . Explosive 678 | . 678 . Electromagnetic . | . . . Impact . | . . . Slashing . | . . . Piercing . | . . . Highest Corruption . | . . . Average Corruption . | . . . Corruption Purged . | . . . Overload Shots . | . . . Overflow Damage 21 | . 21 . Projectiles 2 | . 2 . Explosions 19 | . 19 . Melee . | . . . Knockbacks 6 | . 6 . Impact . | . . . Kinetic 6 | . 6 . Secondary . | . . . Self-Inflicted Damage 42 | . 42 . Shots 2 | . 2 . Rammed . | . . . Targets Rammed . | . . . Kicked . | . . . Crushed . | . . . Highest Temperature 54 | . 54 . Average Temperature 15 | . 15 . Received Heat Transfer 180 | . 162 18 Siege Activations . | . . . Robots Corrupted . | . . . Combat Hostiles . | . . . Parts Fried . | . . . Impact Corruptions . | . . . Robots Melted . | . . . Combat Hostiles . | . . . Parts Melted 1 | . 1 . Heat Transferred 494 | 74 420 . Parts Sabotaged . | . . . Parts Stolen . | . . . Parts Stripped . | . . . Power Chain Reactions . | . . . Missiles Intercepted . | . . . Alert | -11 -10 -10 ------- Run | Scr Mat Min Peak Influence 687 | 5 687 207 Initial 207 | . 3 207 Average 355 | . 382 197 Maximum Alert Level 2 | . 2 1 Low Security (%) 22 | 100 15 81 Level 1 42 | . 46 18 Level 2 34 | . 38 . Level 3 . | . . . Level 4 . | . . . Level 5 . | . . . High Security . | . . . Max Security . | . . . Squads Dispatched 5 | . 5 . Investigation 5 | . 5 . Extermination . | . . . Reinforcement . | . . . Assault . | . . . Garrison . | . . . Intercept . | . . . Construction Impeded . | . . . Haulers Reinforced . | . . . Stealth | -11 -10 -10 --------- Run | Scr Mat Min Distress Signals 2 | . 2 . Communications Jammed . | . . . Distress Signals . | . . . Times Spotted 34 | . 26 8 Peak Tracking Total 8 | . 4 8 Tactical Retreats 1 | . 1 . Traps | -11 -10 -10 ------- Run | Scr Mat Min Traps Triggered 1 | . 1 . Indirectly . | . . . Trap Hack Attempts . | . . . Triggered . | . . . Disarmed . | . . . Reprogrammed . | . . . Reused . | . . . Traps Extracted . | . . . Installed . | . . . Triggered . | . . . Machines | -11 -10 -10 ---------- Run | Scr Mat Min Machines Disabled 7 | . 7 . Max in Single Turn 3 | . 3 . Machines Sabotaged . | . . . Garrisons Compromised . | . . . Overloaded Fab Kills . | . . . Fab Network Shutdowns . | . . . Hacking | -11 -10 -10 --------- Run | Scr Mat Min Machines Accessed 5 | . 5 . Terminals 3 | . 3 . Fabricators . | . . . Repair Stations . | . . . Recycling Units 2 | . 2 . Scanalyzers . | . . . Garrison Access . | . . . Total Hacks 19 | . 19 . Successful 11 | . 11 . Failed 8 | . 8 . Catastrophic 1 | . 1 . Database Lockouts . | . . . Manual 13 | . 13 . Terminals 14 | . 14 . Fabricators . | . . . Repair Stations . | . . . Recycling Units 5 | . 5 . Scanalyzers . | . . . Garrison Access . | . . . Terminal Hacks 4 | . 4 . Part Schematic 1 | . 1 . Robot Analysis 3 | . 3 . Fabricator Hacks . | . . . Repair Station Hacks . | . . . Recycling Unit Hacks 3 | . 3 . Report Inventory 2 | . 2 . Retrieve Components 1 | . 1 . Scanalyzer . | . . . Garrison Access Hacks . | . . . Unauthorized Hacks 4 | . 4 . Terminals 2 | . 2 . Botnet 2 | . 2 . Fabricators . | . . . Repair Stations . | . . . Recycling Units 2 | . 2 . Tunnel 2 | . 2 . Scanalyzers . | . . . Garrison Access . | . . . Data Cores Recovered . | . . . Used . | . . . Hacking Detections 3 | . 3 . Full Trace Events 2 | . 2 . Feedback Events . | . . . Feedback Blocked . | . . . Robot Schematics Acquired . | . . . Robots Built . | . . . Matter . | . . . Time . | . . . Total Robot Build Rating . | . . . Part Schematics Acquired 1 | . 1 . Parts Built . | . . . Matter . | . . . Time . | . . . Total Part Build Rating . | . . . Parts Repaired . | . . . Time . | . . . Parts Recycled . | . . . Recycled Matter . | . . . Retrieved Matter . | . . . Retrieved Components 2 | . 2 . Parts Scanalyzed . | . . . Part Schematics Acquired . | . . . Parts Damaged . | . . . Bothacking | -11 -10 -10 ------------ Run | Scr Mat Min Used RIF Installer . | . . . Robots Hacked . | . . . Non-combat . | . . . Combat . | . . . Robot Hacks Applied . | . . . Relay Couplers Released . | . . . Robots Rewired . | . . . Allies Hacked . | . . . Hacks Repelled . | . . . Allies | -11 -10 -10 -------- Run | Scr Mat Min Total Allies . | . . . Largest Group . | . . . Highest-Rated Group . | . . . Highest-Rated Ally . | . . . Total Orders . | . . . Ally Attacks . | . . . Total Damage . | . . . Kills . | . . . Allies Corrupted . | . . . Allies Melted . | . . . Intel | -11 -10 -10 ------- Run | Scr Mat Min Robot Analysis Total 3 | . 3 . Derelict Logs Recovered . | . . . Drone Launches . | . . . Drone Recoveries . | . . . Exploration | -11 -10 -10 ------------- Run | Scr Mat Min Turns Passed 536 | 33 492 11 Spaces Moved 501 | 47 431 23 Core 217 | 47 168 2 Treads . | . . . Legs . | . . . Wheels . | . . . Hover . | . . . Flight 284 | . 263 21 Fastest Speed 37 | 50 37 40 Average Speed 49 | 50 49 40 Slowest Speed 120 | 50 120 50 Overloaded Moves . | . . . Propulsion Burnouts . | . . . Robots Hopped 7 | . 4 3 Cave-ins Triggered . | . . . Exploration Rate (%) 25 | 4 62 9 Regions Visited 2 Branch Regions 1 Pre-discovered Areas 2 | . 2 . Known Exits Taken 1 | . 1 . Unknown Exits Taken 1 | 1 . . Scrap Searched . | . . . Spaces Dug 2 | . 2 . Terrain Destroyed 94 | . 94 . Melee . | . . . Projectile 4 | . 4 . AOE 90 | . 90 . Terrain Rammed . | . . . Walls Destroyed . | . . . Machines Disabled . | . . . Actions | -11 -10 -10 --------- Run | Scr Mat Min Total 652 | 52 579 21 Wait 52 | . 51 1 Move 486 | 46 423 17 Hop 6 | . 3 3 Pick Up 6 | 2 4 . Fast Attach 9 | 1 8 . Attach 2 | . 2 . Detach . | . . . Swap 2 | . 2 . Drop 3 | . 3 . Fire 86 | 3 83 . Melee . | . . . Ram . | . . . Kick . | . . . Crush . | . . . Escape Stasis . | . . . Rewire . | . . . Trap . | . . . Miscellaneous . | . . . Route ------- -11/Scrapyard -10/Materials (discovered 2 exits: *Mat / *Min) -10/Mines History --------- Turn | Location | Event 4 | -11/Scrapyard | Discovered new exit (range 16) 34 | -11/Scrapyard | Entered Materials 288 | -10/Materials | Core integrity fell below 50% 341 | -10/Materials | Discovered new exit (range 16) 346 | -10/Materials | Build established: Mutant 347 | -10/Materials | Identified exit to Materials 467 | -10/Materials | Discovered new exit (range 13) 505 | -10/Materials | Core integrity fell below 20% 526 | -10/Materials | Identified exit to Mines 526 | -10/Materials | Entered Mines 537 | -10/Mines | Destroyed by S-10 Pest with Light Assault Rifle Last Messages --------------- 00474_ K-01 Serf collects debris. 00484_ Lgt. Assault Rifle destroyed. 00487_ S-10 Pest destroyed. 00487_ K-01 Serf collects debris. 00489_ Acquired 7 matter. 00490_ Acquired 8 matter. 00490_ K-01 Serf collects debris. 00496_ S-10 Pest knocked back. 00500_ K-01 Serf collects debris. 00504_ Dropped Flight Unit. 00511_ S-10 Pest knocked back. 00515_ Flight Unit destroyed. 00520_ Destroyed Flight Unit. 00522_ Lgt. Ion Engine destroyed. 00526_ EXIT=IDENTIFIED: MINES LOCATION=MINES GOAL=ESCAPE 00528_ Lgt. Cannon destroyed. 00529_ K-01 Serf collects debris. 00536_ Flight Unit destroyed. Map ----- +----------------------------------------------------+ | | | | | | | | | | | | | | | ??????????????????????????????? | | ??????????????????????????????? | | ??????????????????????????????? | | ??????# ?????????????????????? | | ?????? ?????????????????????? | | ?????? ?????????????????????? | | ?????? ?????????????????????? | | ?????? #?????????????????????? | | ?????? s#?????????????????????? | | ?????? #?????????????????????? | | ?????# #?????????????????????? | | ?????#ss#?????????????????????? | | ?????# #?????????????????????? | | ?????# #?????????????????????? | | ?????# #?????????????????????? | | ?????# #?????????????????????? | | ?????# #?????????????????????? | | ?????# #?????????????????????? | | ?????#@ #?????????????????????? | | ????## #####?????????????????? | | ????# #?????????????????? | | ????# """ #?????????????????? | | ????#s""" #?????????????????? | | ????#s""" #?????????????????? | | ????# #?????????????????? | | ????# s #?????????????????? | | ????##### ###?????????????????? | | ????????# #???????????????????? | | ?######## #???????????????????? | | ?# ## #???????????????????? | | ?# """ ## #???????????????????? | | ?# """ ## #???????????????????? | | ?# """ ## #???????????????????? | | ?# ## ##### ??????? | | ?# $ #????????????? | | ?# #????????????? | | ?# ###########????????????? | | ?#######??????????????????????? | | ??????????????????????????????? | | ??????????????????????????????? | | ??????????????????????????????? | | ??????????????????????????????? | | ??????????????????????????????? | +----------------------------------------------------+ Best States ------------- Heat Dissipation 25 Energy Generation 10 Energy Capacity 125 Matter Stores 300 Matter Capacity 300 Sight Range 16 Terrain Scan Density 10 Propulsion Shielding 33 Evasion (%) 62 Item Schematics ----------------- Propulsion Shielding | -10/Materials | Hacked Robot Schematics ------------------ None Fabricated ------------ Nothing Alien Tech Used ----------------- None Achievements -------------- None Challenges ------------ None Game ------ Seed TiamatWarpMatrix Manual? 0 Play Time 00:11:09 Cumulative 111.3 hours Start 2020.10.06 @ 15:36:30 End 2020.10.06 @ 15:56:04 Sessions 1 Manual Loads 0 Difficulty Rogue Special Mode None Game No. 167 Rogue 143 Adventurer 22 Explorer 2 Win Type - Total 1 Types 1/0/0/0/0/0/0/0/0 Lore% 49 Gallery% 53 Achievement% 43 Wizard Run 0 Options --------- ASCII 0 Keyboard 0 Movement Numpad Keybinds 0 Fullscreen 1 Font 14/SmallcapsGlow Map View 84x54 Tactical HUD 1 Map Filters NONE Filters NONE Steam 1 RUN: 613cb519-fe3c-4949-a5fc-ad205d1f04d6